fUSD/lending_fUSD_20241128
["ID","MTS","AMOUNT","RATE_DAILY","PERIOD"]
[343645719,1732777843465,-500.0,9.999e-05,2]
[343645720,1732777843475,-500.0,9.999e-05,2]
[343645721,1732777843486,-632.82560589,9.999e-05,2]
[343645722,1732777843495,-500.0,9.999e-05,2]
[343645723,1732777843504,-217.57,9.999e-05,2]
[343645724,1732777843513,-500.0,9.999e-05,2]
[343645725,1732777843523,-500.0,9.999e-05,2]
[343645726,1732777843535,-500.0,9.999e-05,2]
[343645727,1732777843544,-500.0,9.999e-05,2]
[343645728,1732777843553,-500.0,9.999e-05,2]
[343645729,1732777843562,-500.0,9.999e-05,2]
[343645730,1732777843571,-500.0,9.999e-05,2]
[343645731,1732777843581,-500.0,9.999e-05,2]
[343645732,1732777843590,-500.0,9.999e-05,2]
[343645733,1732777843599,-500.0,9.999e-05,2]
[343645734,1732777843608,-500.0,9.999e-05,2]
[343645735,1732777843618,-535.74813237,9.999e-05,2]
[343645736,1732777843628,-386.28,9.999e-05,2]
[343645737,1732777843641,-500.0,9.999e-05,2]
[343645738,1732777843651,-500.0,9.999e-05,2]
[343645739,1732777843660,-500.0,9.999e-05,2]
[343645740,1732777843670,-500.0,9.999e-05,2]
[343645741,1732777843680,-500.0,9.999e-05,2]
[343645742,1732777843697,-500.0,9.999e-05,2]
[343645743,1732777843706,-500.8,9.999e-05,2]
[343645744,1732777843716,-500.0,9.999e-05,2]
[343645745,1732777843726,-500.0,9.999e-05,2]
[343645746,1732777843735,-500.0,9.999e-05,2]
[343645747,1732777843744,-500.0,9.999e-05,2]
[343645748,1732777843753,-500.0,9.999e-05,2]
[343645749,1732777843762,-500.0,9.999e-05,2]
[343645750,1732777843771,-500.0,9.999e-05,2]
[343645751,1732777843781,-330.98,9.999e-05,2]
[343645752,1732777843790,-500.0,9.999e-05,2]
[343645753,1732777843799,-500.0,9.999e-05,2]
[343645754,1732777843808,-500.0,9.999e-05,2]
[343645755,1732777843818,-500.0,9.999e-05,2]
[343645756,1732777843827,-500.0,9.999e-05,2]
[343645757,1732777843835,-411.96,9.999e-05,2]
[343645758,1732777843844,-500.0,9.999e-05,2]
[343645759,1732777843854,-500.0,9.999e-05,2]
[343645760,1732777843863,-500.0,9.999e-05,2]
[343645761,1732777843872,-500.0,9.999e-05,2]
[343645762,1732777843882,-500.0,9.999e-05,2]
[343645763,1732777843891,-500.0,9.999e-05,2]
[343645764,1732777843900,-500.0,9.999e-05,2]
[343645765,1732777843910,-521.08184378,9.999e-05,2]
[343645766,1732777843919,-500.0,9.999e-05,2]
[343645767,1732777843929,-418.87,9.999e-05,2]
[343645768,1732777843938,-500.0,9.999e-05,2]
[343645769,1732777843947,-500.0,9.999e-05,2]
[343645770,1732777843956,-500.0,9.999e-05,2]
[343645771,1732777843965,-500.0,9.999e-05,2]
[343645772,1732777843975,-500.0,9.999e-05,2]
[343645773,1732777843984,-500.0,9.999e-05,2]
[343645774,1732777843993,-500.0,9.999e-05,2]
[343645775,1732777844003,-500.0,9.999e-05,2]
[343645776,1732777844012,-500.0,9.999e-05,2]
[343645777,1732777844021,-500.0,9.999e-05,2]
[343645778,1732777844031,-500.0,9.999e-05,2]
[343645779,1732777844040,-500.0,9.999e-05,2]
[343645780,1732777844050,-633.02,9.999e-05,2]
[343645781,1732777844060,-482.06156419,9.999e-05,2]
[343645782,1732777844069,-500.0,9.999e-05,2]
[343645783,1732777844079,-500.0,9.999e-05,2]
[343645784,1732777844088,-500.0,9.999e-05,2]
[343645785,1732777844098,-528.12713353,9.999e-05,2]
[343645786,1732777844107,-500.0,9.999e-05,2]
[343645787,1732777844116,-452.86057344,9.999e-05,2]
[343645788,1732777844168,-47.13942656,9.999e-05,2]
[343645789,1732777844178,-500.0,9.999e-05,2]
[343645790,1732777844192,-500.0,9.999e-05,2]
[343645791,1732777844201,-500.0,9.999e-05,2]
[343645792,1732777844211,-500.0,9.999e-05,2]
[343645793,1732777844220,-338.03425322,9.999e-05,2]
[343645794,1732777844237,-161.96574678,9.999e-05,2]
[343645795,1732777844246,-335.4183401,9.999e-05,2]
[343645796,1732777844263,-164.5816599,9.999e-05,2]
[343645797,1732777844272,-500.0,9.999e-05,2]
[343645798,1732777844281,-366.8383401,9.999e-05,2]
[343645799,1732777844292,-133.1616599,9.999e-05,2]
[343645800,1732777844302,-500.0,9.999e-05,2]
[343645801,1732777844311,-500.0,9.999e-05,2]
[343645802,1732777844320,-265.14,9.999e-05,2]
[343645803,1732777844330,-509.82000001,9.999e-05,2]
[343645804,1732777844339,-500.0,9.999e-05,2]
[343645805,1732777844347,-500.0,9.999e-05,2]
[343645806,1732777844358,-500.0,9.999e-05,2]
[343645807,1732777844367,-500.0,9.999e-05,2]
[343645808,1732777844377,-402.16967674,9.999e-05,2]
[343645809,1732777844386,-500.0,9.999e-05,2]
[343645810,1732777844395,-396.6520453,9.999e-05,2]
[343645811,1732777844407,-103.3479547,9.999e-05,2]
[343645812,1732777844417,-517.2544408,9.999e-05,2]
[343645813,1732777844426,-509.03874721,9.999e-05,2]
[343645814,1732777844435,-517.13444551,9.999e-05,2]
[343645815,1732777844444,-509.23514598,9.999e-05,2]
[343645816,1732777844453,-503.50385587,9.999e-05,2]
[343645817,1732777844463,-240.1739239,9.999e-05,2]
[343645818,1732777844472,-1085.20346382,9.999e-05,2]
[343645819,1732777844481,-1085.20346382,9.999e-05,2]
[343645820,1732777844490,-23410.4634233,9.999e-05,2]
[343645822,1732777846303,-3267.34135069,9.999e-05,2]
[343645823,1732777846365,-694.8000367,9.999e-05,2]
[343645826,1732778052276,-3398.0,0.00010463,7]
[343645827,1732778210932,2150.95,0.0002,30]
[343645828,1732778443893,269.55,9.99e-05,7]
[343645829,1732778539643,300.0,0.0001,7]
[343645831,1732778716986,-167.04,7.228e-05,2]
[343645832,1732778717008,-1496.96,8.219e-05,2]
[343645833,1732778717037,-425.21057942,8.665e-05,2]
[343645834,1732778717060,-500.0,8.795e-05,2]
[343645835,1732778717082,-226.4,8.799e-05,2]
[343645836,1732778717105,-425.21057942,8.799e-05,2]
[343645837,1732778717127,-166.57,8.836e-05,2]
[343645838,1732778717150,-250.0,8.899e-05,2]
[343645839,1732778717175,-202.06,8.93e-05,2]
[343645840,1732778717196,-250.0,8.94e-05,2]
[343645841,1732778717219,-244.35,8.948e-05,2]
[343645842,1732778717241,-1000.0,8.973e-05,2]
[343645843,1732778717264,-165.93,9.554e-05,2]
[343645844,1732778717290,-16869.37,9.558e-05,2]
[343645845,1732778717311,-400.0,9.589e-05,2]
[343645846,1732778717333,-456.6,9.589e-05,2]
[343645847,1732778717356,-456.6,9.726e-05,2]
[343645848,1732778717378,-1050.0,9.8e-05,2]
[343645849,1732778717399,-166.7,9.82e-05,2]
[343645850,1732778717420,-456.6,9.863e-05,2]
[343645851,1732778717442,-6309.21124116,9.89e-05,2]
[343645852,1732778725774,-24317.68115884,9.89e-05,2]
[343645853,1732778725800,-2500.0,9.899e-05,2]
[343645854,1732778725822,-434.62,9.9e-05,2]
[343645855,1732778736598,1643.24376952,9e-05,2]
[343645856,1732778748521,-418.1335091,0.000217,120]
[343645859,1732778778576,-2000.0,0.00011,10]
[343645860,1732778800565,-4882.0,0.00010463,7]
[343645861,1732778813188,-2000.0,0.00011,5]
[343645863,1732778821951,-8280.0,0.00013463,7]
[343645864,1732778833140,-152.0,0.00017787,29]
[343645868,1732778841834,154.07,0.00016658,30]
[343645869,1732778842362,154.07,0.00019385,30]
[343645870,1732778861962,-152.0,0.00015127,4]
[343645871,1732778861987,-152.0,0.00015234,5]
[343645872,1732778862016,-152.0,0.0001534,6]
[343645873,1732778862043,-152.0,0.00015446,7]
[343645874,1732778862069,-152.0,0.00015553,8]
[343645875,1732778862097,-152.0,0.00015659,9]
[343645876,1732778862124,-152.0,0.00015766,10]
[343645877,1732778862155,-152.0,0.00015872,11]
[343645878,1732778862182,-152.0,0.00015978,12]
[343645879,1732778862211,-152.0,0.00016085,13]
[343645880,1732778862236,-152.0,0.00016191,14]
[343645881,1732778862261,-152.0,0.00016298,15]
[343645882,1732778862287,-3304.1,0.000163,7]
[343645883,1732778862313,-152.0,0.00016404,16]
[343645884,1732778862360,-8280.0,0.00016463,7]
[343645885,1732778862386,-152.0,0.0001651,17]
[343645886,1732778862415,-2000.0,0.00016543,5]
[343645887,1732778862441,-152.0,0.00016617,18]
[343645888,1732778862466,-152.0,0.00016723,19]
[343645889,1732778862489,-152.0,0.0001683,20]
[343645890,1732778862514,-152.0,0.00016936,21]
[343645891,1732778862540,-152.0,0.00017042,22]
[343645892,1732778862569,-152.0,0.00017149,23]
[343645893,1732778862593,-152.0,0.00017255,24]
[343645894,1732778862616,-152.0,0.00017362,25]
[343645895,1732778862638,-152.0,0.00017468,26]
[343645896,1732778862674,-152.0,0.00017574,27]
[343645897,1732778862700,-11569.0,0.000176,5]
[343645898,1732778862726,-152.0,0.00017681,28]
[343645899,1732778862750,-271.28851918,0.00018,5]
[343645900,1732778862775,-323.47,0.00019,10]
[343645901,1732778862808,-250.0,0.000198,10]
[343645902,1732778862835,-6000.0,0.0002,10]
[343645903,1732778862859,-3500.0,0.0002,7]
[343645904,1732778862884,-2765.33783152,0.0002,7]
[343645905,1732778862913,-1013.0,0.0002,6]
[343645906,1732778862941,-469.53328512,0.0002,10]
[343645907,1732778862967,-1385.7430933,0.0002,5]
[343645908,1732778862992,-16386.96913683,0.0002,5]
[343645909,1732778870061,-14063.6640909,0.0002,5]
[343645910,1732778870084,-200.0,0.0002,5]
[343645911,1732778870107,-9652.07284037,0.0002,5]
[343645912,1732778870130,-2500.0,0.0002,10]
[343645913,1732778870163,-733.54517932,0.00020202,4]
[343645914,1732778870186,-301.66722049,0.00020202,4]
[343645915,1732778870210,-353.04326162,0.00020202,4]
[343645916,1732778870233,-150.0,0.00020299,4]
[343645917,1732778870255,-733.54517932,0.00020404,4]
[343645918,1732778870278,-301.66722049,0.00020404,4]
[343645919,1732778870301,-353.04326162,0.00020404,4]
[343645920,1732778870325,-150.0,0.00020408,4]
[343645921,1732778870347,-150.0,0.00020526,4]
[343645922,1732778870371,-150.0,0.00020597,4]
[343645923,1732778870393,-733.54517932,0.00020606,4]
[343645924,1732778870421,-301.66722049,0.00020606,4]
[343645925,1732778870443,-353.04326162,0.00020606,4]
[343645926,1732778870466,-2753.42,0.000208,14]
[343645927,1732778870489,-733.54517932,0.00020808,4]
[343645928,1732778870509,-301.66722049,0.00020808,4]
[343645929,1732778870531,-353.04326162,0.00020808,4]
[343645930,1732778870552,-150.0,0.00020816,4]
[343645931,1732778870573,-150.0,0.00020896,4]
[343645932,1732778870594,-733.54517932,0.0002101,4]
[343645933,1732778870616,-301.66722049,0.0002101,4]
[343645934,1732778870637,-353.04326162,0.0002101,4]
[343645935,1732778870659,-150.0,0.00021053,4]
[343645936,1732778870681,-150.0,0.00021194,4]
[343645937,1732778870701,-733.54517932,0.00021212,4]
[343645938,1732778870721,-301.66722049,0.00021212,4]
[343645939,1732778870742,-353.04326162,0.00021212,4]
[343645940,1732778870764,-150.0,0.00021224,4]
[343645941,1732778870785,-733.54517932,0.00021414,4]
[343645942,1732778870806,-301.66722049,0.00021414,4]
[343645943,1732778870828,-353.04326162,0.00021414,4]
[343645944,1732778870850,-342.53041713,0.00021454,5]
[343645945,1732778870871,-150.0,0.00021493,4]
[343645946,1732778870892,-150.0,0.00021579,4]
[343645947,1732778870912,-733.54517932,0.00021616,4]
[343645948,1732778870936,-301.66722049,0.00021616,4]
[343645949,1732778870957,-353.04326162,0.00021616,4]
[343645950,1732778870977,-150.0,0.00021633,4]
[343645951,1732778870999,-150.0,0.00021791,4]
[343645952,1732778871022,-733.54517932,0.00021818,4]
[343645953,1732778871043,-301.66722049,0.00021818,4]
[343645954,1732778871065,-353.04326162,0.00021818,4]
[343645955,1732778871092,-753.60448126,0.00022,7]
[343645956,1732778871114,-733.54517932,0.0002202,4]
[343645957,1732778871135,-301.66722049,0.0002202,4]
[343645958,1732778871159,-353.04326162,0.0002202,4]
[343645959,1732778871181,-150.0,0.00022041,4]
[343645960,1732778871202,-150.0,0.0002209,4]
[343645961,1732778871225,-150.0,0.00022105,4]
[343645962,1732778871247,-154.07,0.00022113,30]
[343645963,1732778871270,-733.54517932,0.00022222,4]
[343645964,1732778871292,-301.66722049,0.00022222,4]
[343645965,1732778871312,-353.04326162,0.00022222,4]
[343645966,1732778871335,-161.830255,0.00022261,30]
[343645967,1732778871356,-517.822,0.00022262,15]
[343645968,1732778871377,-150.0,0.00022388,4]
[343645969,1732778871400,-733.54517932,0.00022424,4]
[343645970,1732778871423,-301.66722049,0.00022424,4]
[343645971,1732778871443,-353.04326162,0.00022424,4]
[343645972,1732778871463,-150.0,0.00022449,4]
[343645973,1732778871484,-2900.0,0.000225,15]
[343645974,1732778871505,-733.54517932,0.00022626,4]
[343645975,1732778871526,-301.66722049,0.00022626,4]
[343645976,1732778871547,-353.04326162,0.00022626,4]
[343645977,1732778871567,-150.0,0.00022632,4]
[343645978,1732778871588,-150.0,0.00022687,4]
[343645979,1732778871609,-733.54517932,0.00022828,4]
[343645980,1732778871629,-301.66722049,0.00022828,4]
[343645981,1732778871652,-353.04326162,0.00022828,4]
[343645982,1732778871673,-150.0,0.00022857,4]
[343645983,1732778871699,-150.0,0.00022857,4]
[343645984,1732778871719,-150.0,0.00022985,4]
[343645985,1732778871739,-320.0,0.00023,10]
[343645986,1732778871760,-733.54517932,0.0002303,4]
[343645987,1732778871781,-301.66722049,0.0002303,4]
[343645988,1732778871802,-353.04326162,0.0002303,4]
[343645989,1732778871823,-536.55,0.00023099,7]
[343645990,1732778871844,-536.55,0.00023099,7]
[343645991,1732778871866,-536.55,0.00023099,7]
[343645992,1732778871887,-536.55,0.00023099,7]
[343645993,1732778871912,-150.0,0.00023158,4]
[343645994,1732778871938,-429.39285984,0.00023232,4]
[343645995,1732778875600,-304.15231948,0.00023232,4]
[343645996,1732778875623,-301.66722049,0.00023232,4]
[343645997,1732778875645,-353.04326162,0.00023232,4]
[343645998,1732778875668,-150.0,0.00023265,4]
[343645999,1732778875690,-150.0,0.00023284,4]
[343646000,1732778875712,-536.55,0.00023372,7]
[343646001,1732778875736,-536.55,0.00023372,7]
[343646002,1732778875758,-733.54517932,0.00023434,4]
[343646003,1732778875781,-301.66722049,0.00023434,4]
[343646004,1732778875805,-353.04326162,0.00023434,4]
[343646005,1732778875826,-150.0,0.00023582,4]
[343646006,1732778875847,-57448.22340293,0.0002361,7]
[343646007,1732778880155,-61318.44186595,0.0002361,7]
[343646008,1732778883909,-61318.44186595,0.0002361,7]
[343646009,1732778900922,-11569.0,0.000195,5]
[343646010,1732778900956,-150.0,0.00020488,4]
[343646011,1732778900980,-150.0,0.00020976,4]
[343646012,1732778901003,-150.0,0.00021463,4]
[343646013,1732778901031,-150.0,0.00021951,4]
[343646014,1732778901053,-150.0,0.00022439,4]
[343646015,1732778901075,-150.0,0.00022927,4]
[343646016,1732778901097,-18069.87404997,0.0002361,7]
[343646017,1732778901120,-30779.56781598,0.0002361,7]
[343646021,1732778939824,-11569.0,0.000195,5]
[343646022,1732778939867,-2501.2114916,0.00023,5]
[343646023,1732778939891,-150.0,0.00023415,4]
[343646024,1732778939914,-1000.0,0.00023582,4]
[343646025,1732778939939,-1000.0,0.00023582,4]
[343646026,1732778939967,-1000.0,0.00023582,4]
[343646027,1732778939990,-1000.0,0.00023582,4]
[343646028,1732778940012,-43098.23037435,0.0002361,7]
[343646029,1732778943773,-1000.0,0.00023582,4]
[343646030,1732778943797,-1000.0,0.00023582,4]
[343646031,1732778943820,-1000.0,0.00023582,4]
[343646032,1732778943843,-1000.0,0.00023582,4]
[343646033,1732778943867,-1000.0,0.00023582,4]
[343646034,1732778943890,-1000.0,0.00023582,4]
[343646035,1732778943914,-34096.15777851,0.0002361,7]
[343646036,1732778943942,-21222.28408744,0.0002361,7]
[343646037,1732778948137,-1000.0,0.00023582,4]
[343646038,1732778948160,-1000.0,0.00023582,4]
[343646039,1732778948185,-1000.0,0.00023582,4]
[343646040,1732778948212,-1000.0,0.00023582,4]
[343646041,1732778948240,-1000.0,0.00023582,4]
[343646042,1732778948262,-1000.0,0.00023582,4]
[343646043,1732778948284,-1000.0,0.00023582,4]
[343646044,1732778948305,-54318.44186595,0.0002361,7]
[343646045,1732778948339,1422.11,8.219e-05,2]
[343646046,1732778950608,-11569.0,0.000195,5]
[343646047,1732778950650,-1000.0,0.00023582,4]
[343646048,1732778950957,-1000.0,0.00023582,4]
[343646049,1732778950988,-1000.0,0.00023582,4]
[343646050,1732778951015,-1000.0,0.00023582,4]
[343646051,1732778951038,-45749.44186595,0.0002361,7]
[343646052,1732778954205,-1000.0,0.00023582,4]
[343646053,1732778954228,-1000.0,0.00023582,4]
[343646054,1732778954251,-1000.0,0.00023582,4]
[343646055,1732778954274,-1000.0,0.00023582,4]
[343646056,1732778954296,-1000.0,0.00023582,4]
[343646057,1732778954318,-20551.622591,0.0002361,7]
[343646058,1732778954342,-131047.59652982,0.0002361,7]
[343646059,1732778954363,-733.54517932,0.00023636,4]
[343646060,1732778954384,-301.66722049,0.00023636,4]
[343646061,1732778954404,-353.04326162,0.00023636,4]
[343646062,1732778954425,-536.55,0.00023645,7]
[343646063,1732778954447,-536.55,0.00023645,7]
[343646064,1732778954469,-150.0,0.00023684,4]
[343646065,1732778954490,-151.0,0.00023836,7]
[343646066,1732778954510,-151.0,0.00023836,7]
[343646067,1732778954531,-151.0,0.00023836,7]
[343646068,1732778954552,-151.0,0.00023836,7]
[343646069,1732778954573,-151.0,0.00023836,7]
[343646070,1732778954595,-224.286226,0.00023836,7]
[343646071,1732778954616,-733.54517932,0.00023838,4]
[343646072,1732778954638,-301.66722049,0.00023838,4]
[343646073,1732778954660,-353.04326162,0.00023838,4]
[343646074,1732778954682,-150.0,0.00023881,4]
[343646075,1732778954705,-150.0,0.00023902,4]
[343646076,1732778954731,-536.55,0.00023918,7]
[343646077,1732778954760,-536.55,0.00023918,7]
[343646078,1732778954784,-2999.01619505,0.00024,30]
[343646079,1732778954807,-733.54517932,0.0002404,4]
[343646080,1732778954828,-301.66722049,0.0002404,4]
[343646081,1732778954850,-353.04326162,0.0002404,4]
[343646082,1732778954873,-403.079,0.0002407,60]
[343646083,1732778954897,-150.0,0.00024179,4]
[343646084,1732778954920,-536.55,0.00024191,7]
[343646085,1732778954945,-536.55,0.00024191,7]
[343646086,1732778954967,-150.0,0.00024211,4]
[343646087,1732778954989,-733.54517932,0.00024242,4]
[343646088,1732778955011,-301.66722049,0.00024242,4]
[343646089,1732778955034,-353.04326162,0.00024242,4]
[343646090,1732778955057,-264.32,0.000243,31]
[343646091,1732778955080,-150.0,0.0002439,4]
[343646092,1732778955102,-3919.0,0.000244,12]
[343646093,1732778955125,-733.54517932,0.00024444,4]
[343646094,1732778955147,-301.66722049,0.00024444,4]
[343646095,1732778955169,-353.04326162,0.00024444,4]
[343646096,1732778955192,-536.55,0.00024465,7]
[343646097,1732778955214,-536.55,0.00024465,7]
[343646098,1732778955236,-150.0,0.00024478,4]
[343646099,1732778955258,-367129.56650775,0.000245,4]
[343646100,1732778955280,-733.54517932,0.00024646,4]
[343646101,1732778955302,-301.66722049,0.00024646,4]
[343646102,1732778955324,-353.04326162,0.00024646,4]
[343646103,1732778955345,-300.0,0.00024658,10]
[343646104,1732778955366,-300.0,0.00024658,10]
[343646105,1732778955388,-300.0,0.00024658,10]
[343646106,1732778955409,-300.0,0.00024658,10]
[343646107,1732778955430,-300.0,0.00024658,10]
[343646108,1732778955451,-300.0,0.00024658,10]
[343646109,1732778955473,-300.0,0.00024658,10]
[343646110,1732778955494,-300.0,0.00024658,10]
[343646111,1732778955515,-300.0,0.00024658,10]
[343646112,1732778955537,-300.0,0.00024658,10]
[343646113,1732778955559,-300.0,0.00024658,10]
[343646114,1732778955581,-300.0,0.00024658,10]
[343646115,1732778955602,-300.0,0.00024658,10]
[343646116,1732778955624,-300.0,0.00024658,10]
[343646117,1732778955649,-300.0,0.00024658,10]
[343646118,1732778955674,-300.0,0.00024658,10]
[343646119,1732778955696,-300.0,0.00024658,10]
[343646120,1732778955718,-300.0,0.00024658,10]
[343646121,1732778955740,-300.0,0.00024658,10]
[343646122,1732778955762,-300.0,0.00024658,10]
[343646123,1732778955783,-300.0,0.00024658,10]
[343646124,1732778955805,-300.0,0.00024658,10]
[343646125,1732778955827,-300.0,0.00024658,10]
[343646126,1732778955849,-300.0,0.00024658,10]
[343646127,1732778955870,-300.0,0.00024658,10]
[343646128,1732778955893,-5994.78,0.00024658,4]
[343646129,1732778955914,-300.0,0.00024658,10]
[343646130,1732778955937,-300.0,0.00024658,10]
[343646131,1732778955961,-300.0,0.00024658,10]
[343646132,1732778955984,-300.0,0.00024658,10]
[343646133,1732778956006,-300.0,0.00024658,10]
[343646134,1732778956031,-300.0,0.00024658,10]
[343646135,1732778956055,-58.24084775,0.00024658,10]
[343646145,1732778975465,-1000.0,0.00023582,4]
[343646146,1732778975488,-1000.0,0.00023582,4]
[343646147,1732778975511,-1000.0,0.00023582,4]
[343646148,1732778975539,-1000.0,0.00023582,4]
[343646149,1732778975561,-1000.0,0.00023582,4]
[343646150,1732778975583,-1000.0,0.00023582,4]
[343646151,1732778975606,-1000.0,0.00023582,4]
[343646152,1732778975629,-1000.0,0.00023582,4]
[343646153,1732778975651,-1000.0,0.00023582,4]
[343646154,1732778975672,-1000.0,0.00023582,4]
[343646155,1732778975694,-1146.99028099,0.00023582,4]
[343646156,1732778975721,-241.75915225,0.00024658,10]
[343646157,1732778975745,-331.63900703,0.00024658,10]
[343646158,1732778975770,-300.0,0.00024658,10]
[343646159,1732778975793,-300.0,0.00024658,10]
[343646160,1732778975815,-300.0,0.00024658,10]
[343646161,1732778975838,-300.0,0.00024658,10]
[343646162,1732778975861,-300.0,0.00024658,10]
[343646163,1732778975883,-312.86553998,0.00024658,10]
[343646164,1732778975906,-300.0,0.00024658,10]
[343646165,1732778975929,-300.0,0.00024658,10]
[343646166,1732778975956,-300.0,0.00024658,10]
[343646167,1732778975978,-304.17313849,0.00024658,10]
[343646168,1732778976003,-300.0,0.00024658,10]
[343646169,1732778976026,-349.74846162,0.00024658,10]
[343646170,1732778976048,-150.0,0.00024737,4]
[343646171,1732778976072,-536.55,0.00024738,7]
[343646172,1732778976095,-536.55,0.00024738,7]
[343646173,1732778976119,-150.0,0.00024776,4]
[343646174,1732778976142,-154.07,0.0002484,30]
[343646175,1732778976165,-733.54517932,0.00024848,4]
[343646176,1732778976187,-301.66722049,0.00024848,4]
[343646177,1732778976208,-353.04326162,0.00024848,4]
[343646178,1732778976239,-150.0,0.00024878,4]
[343646179,1732778976261,-3919.0,0.000249,13]
[343646180,1732778976286,-403.034,0.0002499,30]
[343646181,1732778976308,-330.83362726,0.00025,10]
[343646182,1732778976331,-157.50715611,0.00025,10]
[343646183,1732778976354,-150.0,0.00025,4]
[343646184,1732778976377,-7064.67114744,0.00025,7]
[343646185,1732778976400,-536.55,0.00025011,7]
[343646186,1732778976422,-536.55,0.00025011,7]
[343646187,1732778976443,-733.54517932,0.00025051,4]
[343646188,1732778976465,-301.66722049,0.00025051,4]
[343646189,1732778976488,-353.04326162,0.00025051,4]
[343646190,1732778976509,-150.0,0.00025075,4]
[343646191,1732778976531,-733.54517932,0.00025253,4]
[343646192,1732778976552,-301.66722049,0.00025253,4]
[343646193,1732778976573,-353.04326162,0.00025253,4]
[343646194,1732778976595,-150.0,0.00025263,4]
[343646195,1732778976618,-536.55,0.00025284,7]
[343646196,1732778976641,-536.55,0.00025284,7]
[343646197,1732778976664,-280.0,0.000253,10]
[343646198,1732778976686,-150.0,0.00025366,4]
[343646199,1732778976708,-150.0,0.00025373,4]
[343646200,1732778976731,-3919.0,0.000254,13]
[343646201,1732778976755,-733.54517932,0.00025455,4]
[343646202,1732778976777,-301.66722049,0.00025455,4]
[343646203,1732778976800,-353.04326162,0.00025455,4]
[343646204,1732778976824,-536.55,0.00025558,7]
[343646205,1732778976848,-536.55,0.00025558,7]
[343646206,1732778976872,-733.54517932,0.00025657,4]
[343646207,1732778976895,-301.66722049,0.00025657,4]
[343646208,1732778976918,-353.04326162,0.00025657,4]
[343646209,1732778976942,-150.0,0.00025672,4]
[343646210,1732778976967,-150.0,0.00025714,4]
[343646211,1732778976990,-150.0,0.00025789,4]
[343646212,1732778977014,-536.55,0.00025831,7]
[343646213,1732778977038,-536.55,0.00025831,7]
[343646214,1732778977061,-150.0,0.00025854,4]
[343646215,1732778977083,-733.54517932,0.00025859,4]
[343646216,1732778977106,-301.66722049,0.00025859,4]
[343646217,1732778977129,-353.04326162,0.00025859,4]
[343646218,1732778977151,-3919.0,0.000259,14]
[343646219,1732778977173,-403.099,0.000259,31]
[343646220,1732778977195,-150.0,0.0002597,4]
[343646221,1732778977217,-1197.66049721,0.00025999,5]
[343646222,1732778977240,-150.0,0.00026,30]
[343646223,1732778977264,-733.54517932,0.00026061,4]
[343646224,1732778977286,-301.66722049,0.00026061,4]
[343646225,1732778977307,-353.04326162,0.00026061,4]
[343646226,1732778977552,-733.54517932,0.00026263,4]
[343646227,1732778977575,-301.66722049,0.00026263,4]
[343646228,1732778977597,-353.04326162,0.00026263,4]
[343646229,1732778977619,-150.0,0.00026269,4]
[343646230,1732778977641,-474.460873,0.00026292,15]
[343646231,1732778977665,-150.0,0.00026316,4]
[343646232,1732778977687,-150.0,0.00026341,4]
[343646233,1732778977707,-3919.0,0.000264,14]
[343646234,1732778977729,-733.54517932,0.00026465,4]
[343646235,1732778977759,-301.66722049,0.00026465,4]
[343646236,1732778977782,-353.04326162,0.00026465,4]
[343646237,1732778977807,-150.0,0.00026567,4]
[343646238,1732778977830,-733.54517932,0.00026667,4]
[343646239,1732778977852,-301.66722049,0.00026667,4]
[343646240,1732778977874,-353.04326162,0.00026667,4]